[Event "*** Titled Tuesday Blitz"]
[Site "Chess.com"]
[Date "2019.08.06"]
[Round "5"]
[White "vugarrasulov"]
[Black "AminMolaei"]
[Result "1-0"]
[WhiteElo "2832"]
[BlackElo "2553"]
[TimeControl "180+2"]
[EndTime "13:58:32 PDT"]
[Termination "vugarrasulov won by resignation"]

1. d4 {[%clk 0:03:01.9]} 1... e6 {[%clk 0:03:01.4]} 2. e4 {[%clk 0:03:02.3]}
2... b6 {[%clk 0:03:02.1]} 3. Nf3 {[%clk 0:03:02.4]} 3... Bb7 {[%clk 0:03:03.6]}
4. Bd3 {[%clk 0:03:03.5]} 4... Nf6 {[%clk 0:03:03.9]} 5. Nbd2 {[%clk 0:03:04.1]}
5... c5 {[%clk 0:03:04.6]} 6. O-O {[%clk 0:03:04]} 6... cxd4 {[%clk 0:03:04.3]}
7. Nxd4 {[%clk 0:03:05.9]} 7... Nc6 {[%clk 0:03:05.7]} 8. Nb5 {[%clk 0:02:58.3]}
8... d6 {[%clk 0:03:05.9]} 9. Nc4 {[%clk 0:02:55.1]} 9... a6 {[%clk 0:03:06.2]}
10. Nc3 {[%clk 0:02:56.1]} 10... Be7 {[%clk 0:03:07]} 11. Bf4 {[%clk 0:02:55.1]}
11... Nd7 {[%clk 0:03:08.4]} 12. Nxd6+ {[%clk 0:02:53.9]} 12... Bxd6 {[%clk
0:03:08.9]} 13. Bxd6 {[%clk 0:02:55.8]} 13... Nc5 {[%clk 0:03:00.7]} 14. e5
{[%clk 0:02:56.9]} 14... Qd7 {[%clk 0:02:56.4]} 15. Qg4 {[%clk 0:02:49.7]} 15...
g6 {[%clk 0:02:51.3]} 16. Rad1 {[%clk 0:02:50]} 16... O-O-O {[%clk 0:02:42.6]}
17. Bxc5 {[%clk 0:02:45.8]} 17... bxc5 {[%clk 0:02:43.7]} 18. Bxa6 {[%clk
0:02:42.5]} 18... Nd4 {[%clk 0:02:41.9]} 19. Bxb7+ {[%clk 0:02:43.5]} 19... Qxb7
{[%clk 0:02:43.8]} 20. Qe4 {[%clk 0:02:38.1]} 20... Qxb2 {[%clk 0:02:40.4]} 21.
Rb1 {[%clk 0:02:35.5]} 1-0

[Event "*** Titled Tuesday Blitz"]
[Site "Chess.com"]
[Date "2019.08.06"]
[Round "5"]
[White "iLuusions"]
[Black "kasparicy"]
[Result "1-0"]
[WhiteElo "2545"]
[BlackElo "2400"]
[TimeControl "180+2"]
[EndTime "13:59:13 PDT"]
[Termination "iLuusions won by resignation"]

1. d4 {[%clk 0:02:58.6]} 1... f5 {[%clk 0:02:59.6]} 2. c4 {[%clk 0:03:00.5]}
2... e6 {[%clk 0:03:00.1]} 3. Nc3 {[%clk 0:03:00.8]} 3... Nf6 {[%clk 0:03:01.5]}
4. e3 {[%clk 0:02:59.8]} 4... d6 {[%clk 0:03:02.7]} 5. Bd3 {[%clk 0:03:00.7]}
5... Be7 {[%clk 0:03:02.3]} 6. Nge2 {[%clk 0:02:57.4]} 6... O-O {[%clk
0:03:03.1]} 7. Qc2 {[%clk 0:02:58]} 7... a5 {[%clk 0:03:04.6]} 8. O-O {[%clk
0:02:57.7]} 8... Nc6 {[%clk 0:03:06]} 9. a3 {[%clk 0:02:58.2]} 9... Qe8 {[%clk
0:03:03.8]} 10. Rb1 {[%clk 0:02:52.7]} 10... Qh5 {[%clk 0:02:59.1]} 11. b4
{[%clk 0:02:49.4]} 11... axb4 {[%clk 0:02:56.9]} 12. axb4 {[%clk 0:02:51.3]}
12... e5 {[%clk 0:02:51]} 13. Ng3 {[%clk 0:02:45.1]} 13... Qh4 {[%clk
0:02:50.6]} 14. Bxf5 {[%clk 0:02:35.7]} 14... exd4 {[%clk 0:02:48.7]} 15. Nd5
{[%clk 0:02:36.9]} 15... Bxf5 {[%clk 0:02:39.2]} 16. Nxf5 {[%clk 0:02:37]} 16...
Qh5 {[%clk 0:02:18]} 17. Nfxe7+ {[%clk 0:02:36.1]} 17... Nxe7 {[%clk 0:02:18.4]}
18. Nxe7+ {[%clk 0:02:38]} 18... Kh8 {[%clk 0:02:20.3]} 19. Qf5 {[%clk
0:02:23.5]} 19... Qf7 {[%clk 0:02:19.1]} 20. Nd5 {[%clk 0:02:24.3]} 20... dxe3
{[%clk 0:02:18.8]} 21. Bxe3 {[%clk 0:02:22.5]} 1-0

[Event "*** Titled Tuesday Blitz"]
[Site "Chess.com"]
[Date "2019.08.06"]
[Round "5"]
[White "DenishevM"]
[Black "SoCalJuniorChess"]
[Result "1-0"]
[WhiteElo "2479"]
[BlackElo "1861"]
[TimeControl "180+2"]
[EndTime "13:59:18 PDT"]
[Termination "DenishevM won by resignation"]

1. Nf3 {[%clk 0:03:01.9]} 1... g6 {[%clk 0:02:58.3]} 2. c4 {[%clk 0:03:02.2]}
2... Bg7 {[%clk 0:02:58.6]} 3. g3 {[%clk 0:03:03.4]} 3... d6 {[%clk 0:02:58.6]}
4. Bg2 {[%clk 0:03:04.8]} 4... c5 {[%clk 0:02:56.9]} 5. O-O {[%clk 0:03:06.1]}
5... Nc6 {[%clk 0:02:55.3]} 6. Nc3 {[%clk 0:03:07.5]} 6... Nf6 {[%clk
0:02:54.3]} 7. a3 {[%clk 0:03:08.3]} 7... O-O {[%clk 0:02:52.9]} 8. Rb1 {[%clk
0:03:09.2]} 8... Rb8 {[%clk 0:02:41.1]} 9. b4 {[%clk 0:03:09.8]} 9... cxb4
{[%clk 0:02:33.1]} 10. axb4 {[%clk 0:03:11.7]} 10... a6 {[%clk 0:02:28]} 11. b5
{[%clk 0:03:00.7]} 11... axb5 {[%clk 0:02:18.1]} 12. cxb5 {[%clk 0:02:52.1]}
12... Na5 {[%clk 0:02:16.2]} 13. Qa4 {[%clk 0:02:45.5]} 13... b6 {[%clk
0:02:14]} 14. Nd4 {[%clk 0:02:44.4]} 14... Nd7 {[%clk 0:02:00.2]} 15. Nc6 {[%clk
0:02:41.1]} 15... Nxc6 {[%clk 0:01:58.7]} 16. bxc6 {[%clk 0:02:42.4]} 16... Nc5
{[%clk 0:02:00.6]} 17. Qa7 {[%clk 0:02:33.9]} 17... Bb7 {[%clk 0:01:29.5]} 18.
cxb7 {[%clk 0:02:31.2]} 18... Bxc3 {[%clk 0:01:28.9]} 19. dxc3 {[%clk
0:02:31.2]} 1-0

[Event "*** Titled Tuesday Blitz"]
[Site "Chess.com"]
[Date "2019.08.06"]
[Round "5"]
[White "KarstenHansch"]
[Black "farzadbfd"]
[Result "0-1"]
[WhiteElo "2435"]
[BlackElo "2660"]
[TimeControl "180+2"]
[EndTime "13:59:31 PDT"]
[Termination "farzadbfd won by resignation"]

1. e4 {[%clk 0:03:01.9]} 1... e5 {[%clk 0:03:00.8]} 2. Nf3 {[%clk 0:03:00.8]}
2... Nc6 {[%clk 0:03:01.8]} 3. d4 {[%clk 0:02:59.8]} 3... exd4 {[%clk
0:03:02.5]} 4. Nxd4 {[%clk 0:03:00]} 4... Bc5 {[%clk 0:03:04]} 5. Nxc6 {[%clk
0:02:59.3]} 5... Qf6 {[%clk 0:03:05]} 6. Qf3 {[%clk 0:02:55.8]} 6... dxc6 {[%clk
0:03:06.2]} 7. Nc3 {[%clk 0:02:51.5]} 7... Be6 {[%clk 0:03:06.8]} 8. Qg3 {[%clk
0:02:51]} 8... Bd6 {[%clk 0:02:54.3]} 9. Qg5 {[%clk 0:02:31]} 9... Qxg5 {[%clk
0:02:46.7]} 10. Bxg5 {[%clk 0:02:29.2]} 10... f6 {[%clk 0:02:45.4]} 11. Be3
{[%clk 0:02:29.7]} 11... O-O-O {[%clk 0:02:42.5]} 12. O-O-O {[%clk 0:02:30.2]}
12... a6 {[%clk 0:02:39.2]} 13. f3 {[%clk 0:02:29.6]} 13... Ne7 {[%clk
0:02:38.1]} 14. a3 {[%clk 0:02:28.4]} 14... c5 {[%clk 0:02:37.7]} 15. Ne2 {[%clk
0:02:28.3]} 15... Ng6 {[%clk 0:02:35.8]} 16. Kb1 {[%clk 0:02:16.6]} 16... b6
{[%clk 0:02:31.3]} 17. Nc1 {[%clk 0:02:15.8]} 17... Kb7 {[%clk 0:02:32.1]} 18.
g3 {[%clk 0:02:16]} 18... Rhe8 {[%clk 0:02:26.9]} 19. Bg2 {[%clk 0:02:16.8]}
19... Bd7 {[%clk 0:02:26.8]} 20. Rd2 {[%clk 0:02:13.1]} 20... Bc6 {[%clk
0:02:27.8]} 21. Rhd1 {[%clk 0:02:13.5]} 21... Re7 {[%clk 0:02:21.9]} 22. Bg1
{[%clk 0:02:00.4]} 22... Rde8 {[%clk 0:02:22.4]} 23. h4 {[%clk 0:01:55]} 23...
Bxg3 {[%clk 0:02:21.6]} 0-1

[Event "*** Titled Tuesday Blitz"]
[Site "Chess.com"]
[Date "2019.08.06"]
[Round "5"]
[White "Frolik67"]
[Black "Parhamov"]
[Result "0-1"]
[WhiteElo "2623"]
[BlackElo "2954"]
[TimeControl "180+2"]
[EndTime "14:00:20 PDT"]
[Termination "Parhamov won by resignation"]

1. e4 {[%clk 0:03:01.9]} 1... c5 {[%clk 0:03:00.9]} 2. Nf3 {[%clk 0:03:01.8]}
2... d6 {[%clk 0:03:02.2]} 3. Bb5+ {[%clk 0:03:02.6]} 3... Nd7 {[%clk 0:03:03]}
4. d4 {[%clk 0:03:03.1]} 4... cxd4 {[%clk 0:03:03.8]} 5. Qxd4 {[%clk 0:03:05]}
5... a6 {[%clk 0:03:03.4]} 6. Bxd7+ {[%clk 0:03:05.3]} 6... Bxd7 {[%clk
0:03:04.1]} 7. c4 {[%clk 0:03:06.8]} 7... Nf6 {[%clk 0:03:04.2]} 8. Nc3 {[%clk
0:03:08]} 8... b5 {[%clk 0:03:05]} 9. Bg5 {[%clk 0:03:02.9]} 9... e5 {[%clk
0:03:01.2]} 10. Qd3 {[%clk 0:03:01.6]} 10... bxc4 {[%clk 0:03:00.9]} 11. Qxc4
{[%clk 0:03:03.5]} 11... Be7 {[%clk 0:03:01.2]} 12. Rd1 {[%clk 0:02:54.9]} 12...
O-O {[%clk 0:02:57.1]} 13. O-O {[%clk 0:02:46.2]} 13... Be6 {[%clk 0:02:52.4]}
14. Qc6 {[%clk 0:02:22.5]} 14... Rc8 {[%clk 0:02:48.5]} 15. Qxa6 {[%clk
0:02:21.6]} 15... Bc4 {[%clk 0:02:49.2]} 16. Qa7 {[%clk 0:02:10.8]} 16... Bxf1
{[%clk 0:02:45]} 17. Kxf1 {[%clk 0:02:12.7]} 17... Ra8 {[%clk 0:02:41.9]} 18.
Qe3 {[%clk 0:02:07.6]} 18... Ng4 {[%clk 0:02:42.3]} 19. Qc1 {[%clk 0:02:07.7]}
19... Nxh2+ {[%clk 0:02:42.1]} 20. Ke2 {[%clk 0:02:06.5]} 20... Nxf3 {[%clk
0:02:42.6]} 21. Bxe7 {[%clk 0:02:05.8]} 21... Nd4+ {[%clk 0:02:41.6]} 22. Rxd4
{[%clk 0:02:05.6]} 22... Qxe7 {[%clk 0:02:42.9]} 23. Rd3 {[%clk 0:01:59.7]}
23... f5 {[%clk 0:02:43.6]} 24. exf5 {[%clk 0:01:59.2]} 24... Rxf5 {[%clk
0:02:44.7]} 25. Nd5 {[%clk 0:01:57.7]} 25... Qf7 {[%clk 0:02:45.8]} 26. f3
{[%clk 0:01:57]} 26... e4 {[%clk 0:02:46.5]} 27. fxe4 {[%clk 0:01:55.8]} 27...
Rf2+ {[%clk 0:02:47.6]} 28. Ke3 {[%clk 0:01:57.4]} 28... Rxg2 {[%clk 0:02:43.5]}
29. Qe1 {[%clk 0:01:43.9]} 29... Rf8 {[%clk 0:02:43.6]} 30. Rc3 {[%clk
0:01:41.2]} 30... Rxb2 {[%clk 0:02:39.1]} 31. Qg3 {[%clk 0:01:37.3]} 31... Qa7+
{[%clk 0:02:38.7]} 32. Kd3 {[%clk 0:01:36.2]} 32... Qa6+ {[%clk 0:02:39.9]} 33.
Ke3 {[%clk 0:01:33.5]} 33... Qe2+ {[%clk 0:02:33.9]} 0-1

[Event "*** Titled Tuesday Blitz"]
[Site "Chess.com"]
[Date "2019.08.06"]
[Round "5"]
[White "Alopekos"]
[Black "Er_is_geen_hoop_meer"]
[Result "0-1"]
[WhiteElo "2488"]
[BlackElo "2376"]
[TimeControl "180+2"]
[EndTime "14:00:54 PDT"]
[Termination "Er_is_geen_hoop_meer won by resignation"]

1. e4 {[%clk 0:03:01.9]} 1... c5 {[%clk 0:02:56.5]} 2. Nf3 {[%clk 0:03:01.5]}
2... d6 {[%clk 0:02:51.2]} 3. d4 {[%clk 0:03:01.2]} 3... cxd4 {[%clk 0:02:53.1]}
4. Nxd4 {[%clk 0:03:03.1]} 4... Nf6 {[%clk 0:02:52.1]} 5. Nc3 {[%clk 0:03:04.6]}
5... a6 {[%clk 0:02:53.4]} 6. Be3 {[%clk 0:03:05.7]} 6... e6 {[%clk 0:02:53]} 7.
a4 {[%clk 0:03:05.1]} 7... Be7 {[%clk 0:02:53.1]} 8. g4 {[%clk 0:03:02]} 8... h5
{[%clk 0:02:52.1]} 9. gxh5 {[%clk 0:02:47.3]} 9... Rxh5 {[%clk 0:02:54]} 10. Be2
{[%clk 0:02:39.8]} 10... Rc5 {[%clk 0:02:55.4]} 11. Bf3 {[%clk 0:01:49.2]} 11...
Nbd7 {[%clk 0:02:52.8]} 12. Nb3 {[%clk 0:01:39.6]} 12... Rxc3 {[%clk 0:02:54]}
13. bxc3 {[%clk 0:01:40.4]} 13... Ne5 {[%clk 0:02:55.9]} 14. Bg2 {[%clk
0:01:33.3]} 14... Qc7 {[%clk 0:02:56.2]} 15. O-O {[%clk 0:01:12.5]} 15... Bd7
{[%clk 0:02:52]} 16. a5 {[%clk 0:01:01.8]} 16... Nc4 {[%clk 0:02:49.8]} 17. Bf4
{[%clk 0:00:37.1]} 17... Bc6 {[%clk 0:02:50.2]} 18. Re1 {[%clk 0:00:32]} 18...
O-O-O {[%clk 0:02:50.8]} 19. Qd4 {[%clk 0:00:26.6]} 19... Bb5 {[%clk 0:02:50.2]}
20. Qa7 {[%clk 0:00:26.6]} 20... e5 {[%clk 0:02:51.4]} 21. Bg5 {[%clk 0:00:19]}
21... Rh8 {[%clk 0:02:51.5]} 22. Rad1 {[%clk 0:00:15.3]} 22... Rh5 {[%clk
0:02:51.6]} 23. h4 {[%clk 0:00:15.3]} 23... Qb8 {[%clk 0:02:48]} 24. Bh3+ {[%clk
0:00:11.7]} 24... Kc7 {[%clk 0:02:49.4]} 25. Nd2 {[%clk 0:00:09]} 25... Qxa7
{[%clk 0:02:46.9]} 0-1

[Event "*** Titled Tuesday Blitz"]
[Site "Chess.com"]
[Date "2019.08.06"]
[Round "5"]
[White "Blitzking642"]
[Black "Chigorinetz"]
[Result "0-1"]
[WhiteElo "2391"]
[BlackElo "2620"]
[TimeControl "180+2"]
[EndTime "14:00:58 PDT"]
[Termination "Chigorinetz won by resignation"]

1. d4 {[%clk 0:03:01.9]} 1... d5 {[%clk 0:03:00.3]} 2. c4 {[%clk 0:03:02.6]}
2... Nc6 {[%clk 0:03:01.7]} 3. cxd5 {[%clk 0:02:59.6]} 3... Qxd5 {[%clk
0:03:01.7]} 4. Nf3 {[%clk 0:02:59.7]} 4... e5 {[%clk 0:03:02.4]} 5. Nc3 {[%clk
0:03:00.8]} 5... Bb4 {[%clk 0:03:02.6]} 6. e3 {[%clk 0:03:00.8]} 6... exd4
{[%clk 0:03:01]} 7. exd4 {[%clk 0:03:00.5]} 7... Bg4 {[%clk 0:03:01.4]} 8. Be2
{[%clk 0:02:59.4]} 8... Bxf3 {[%clk 0:03:01.7]} 9. Bxf3 {[%clk 0:02:59.3]} 9...
Qc4 {[%clk 0:03:02.7]} 10. Bxc6+ {[%clk 0:02:45.1]} 10... bxc6 {[%clk
0:03:02.6]} 11. Qe2+ {[%clk 0:02:44.5]} 11... Qxe2+ {[%clk 0:03:03]} 12. Kxe2
{[%clk 0:02:45.9]} 12... O-O-O {[%clk 0:03:04.3]} 13. a3 {[%clk 0:02:42.8]}
13... Ba5 {[%clk 0:03:02.3]} 14. Be3 {[%clk 0:02:42.5]} 14... Ne7 {[%clk
0:03:02.8]} 15. Rhd1 {[%clk 0:02:41.7]} 15... Rhe8 {[%clk 0:03:02.9]} 16. Rac1
{[%clk 0:02:36]} 16... Rd6 {[%clk 0:02:46.5]} 17. Ne4 {[%clk 0:02:25.4]} 17...
Rg6 {[%clk 0:02:43]} 18. g3 {[%clk 0:02:07.7]} 18... Bb6 {[%clk 0:02:39.6]} 19.
Nc5 {[%clk 0:02:07]} 19... Nf5 {[%clk 0:02:27.7]} 20. Rc3 {[%clk 0:01:59.8]}
20... h5 {[%clk 0:02:27.1]} 21. h4 {[%clk 0:01:58.8]} 21... Rg4 {[%clk
0:02:22.7]} 22. Kf3 {[%clk 0:01:57]} 22... Rd8 {[%clk 0:02:05.9]} 23. Rcd3
{[%clk 0:01:36.9]} 23... Rd5 {[%clk 0:01:51.4]} 24. b4 {[%clk 0:01:37.9]} 24...
f6 {[%clk 0:01:37.8]} 25. Ne4 {[%clk 0:01:30]} 25... Nxe3 {[%clk 0:01:35]} 26.
fxe3 {[%clk 0:01:28.3]} 26... Rf5+ {[%clk 0:01:35]} 0-1

[Event "*** Titled Tuesday Blitz"]
[Site "Chess.com"]
[Date "2019.08.06"]
[Round "5"]
[White "ahachess"]
[Black "TijanaBlagojevic"]
[Result "1/2-1/2"]
[WhiteElo "2325"]
[BlackElo "2305"]
[TimeControl "180+2"]
[EndTime "14:01:02 PDT"]
[Termination "Game drawn by repetition"]

1. d4 {[%clk 0:02:59]} 1... d5 {[%clk 0:03:00.7]} 2. c4 {[%clk 0:02:59.8]} 2...
c6 {[%clk 0:03:01.7]} 3. cxd5 {[%clk 0:03:00.1]} 3... cxd5 {[%clk 0:03:01.5]} 4.
Nc3 {[%clk 0:03:01.1]} 4... Nf6 {[%clk 0:03:03.1]} 5. Bf4 {[%clk 0:03:02]} 5...
Nc6 {[%clk 0:03:04.6]} 6. Rc1 {[%clk 0:03:02.4]} 6... a6 {[%clk 0:03:00.4]} 7.
Nf3 {[%clk 0:03:00.7]} 7... Ne4 {[%clk 0:02:57]} 8. e3 {[%clk 0:02:46.7]} 8...
Nxc3 {[%clk 0:02:56.2]} 9. bxc3 {[%clk 0:02:46]} 9... e6 {[%clk 0:02:55.9]} 10.
Bd3 {[%clk 0:02:46.3]} 10... Ba3 {[%clk 0:02:52.9]} 11. Rb1 {[%clk 0:02:46.8]}
11... Bd6 {[%clk 0:02:54.5]} 12. Bxd6 {[%clk 0:02:45.2]} 12... Qxd6 {[%clk
0:02:56.4]} 13. O-O {[%clk 0:02:33.6]} 13... O-O {[%clk 0:02:57.1]} 14. Bxh7+
{[%clk 0:01:57.8]} 14... Kxh7 {[%clk 0:02:55.8]} 15. Ng5+ {[%clk 0:01:58]} 15...
Kg6 {[%clk 0:02:56.7]} 16. Qg4 {[%clk 0:01:54.1]} 16... f5 {[%clk 0:02:31.1]}
17. Qh4 {[%clk 0:01:47.8]} 17... Bd7 {[%clk 0:02:18]} 18. Qh7+ {[%clk
0:01:01.7]} 18... Kf6 {[%clk 0:02:16.1]} 19. Qh4 {[%clk 0:00:56.5]} 19... Kg6
{[%clk 0:01:59.8]} 20. Qh7+ {[%clk 0:00:36.8]} 20... Kf6 {[%clk 0:01:59.3]} 21.
Qh4 {[%clk 0:00:37.4]} 21... Kg6 {[%clk 0:02:00.4]} 1/2-1/2

[Event "*** Titled Tuesday Blitz"]
[Site "Chess.com"]
[Date "2019.08.06"]
[Round "5"]
[White "LuckyTiger"]
[Black "HansCoolNiemann"]
[Result "1-0"]
[WhiteElo "2678"]
[BlackElo "2693"]
[TimeControl "180+2"]
[EndTime "14:01:16 PDT"]
[Termination "LuckyTiger won by resignation"]

1. e4 {[%clk 0:03:01.9]} 1... c5 {[%clk 0:03:00]} 2. c3 {[%clk 0:03:02.6]} 2...
d5 {[%clk 0:03:00.4]} 3. exd5 {[%clk 0:03:03.8]} 3... Qxd5 {[%clk 0:03:02.3]} 4.
d4 {[%clk 0:03:05.2]} 4... Nc6 {[%clk 0:03:03.5]} 5. Nf3 {[%clk 0:03:05.8]} 5...
Nf6 {[%clk 0:03:05]} 6. Be3 {[%clk 0:03:01.5]} 6... cxd4 {[%clk 0:03:04.8]} 7.
cxd4 {[%clk 0:02:59.8]} 7... e6 {[%clk 0:03:05.8]} 8. Nc3 {[%clk 0:03:01.2]}
8... Bb4 {[%clk 0:03:03.5]} 9. Bd3 {[%clk 0:03:01.9]} 9... O-O {[%clk
0:03:04.1]} 10. O-O {[%clk 0:03:03.4]} 10... Qh5 {[%clk 0:03:05.5]} 11. Be2
{[%clk 0:02:49.6]} 11... Qa5 {[%clk 0:03:05.2]} 12. Bd2 {[%clk 0:02:39.7]} 12...
Rd8 {[%clk 0:03:00.2]} 13. a3 {[%clk 0:02:33.7]} 13... Bxc3 {[%clk 0:03:01.2]}
14. Bxc3 {[%clk 0:02:35.6]} 14... Qc7 {[%clk 0:03:01]} 15. Bd3 {[%clk
0:02:19.1]} 15... Nd5 {[%clk 0:02:38.3]} 16. Re1 {[%clk 0:02:03.7]} 16... b6
{[%clk 0:02:36.9]} 17. Bd2 {[%clk 0:02:01.7]} 17... Bb7 {[%clk 0:02:38]} 18. Qe2
{[%clk 0:02:02.5]} 18... Nce7 {[%clk 0:02:37]} 19. Ne5 {[%clk 0:01:59.2]} 19...
Nf6 {[%clk 0:02:36.2]} 20. Rac1 {[%clk 0:01:56.3]} 20... Qd6 {[%clk 0:02:35.3]}
21. Bc4 {[%clk 0:01:08]} 21... Ned5 {[%clk 0:02:33.5]} 22. Ba2 {[%clk
0:01:02.8]} 22... Rac8 {[%clk 0:02:32.5]} 23. h3 {[%clk 0:00:57.7]} 23... h6
{[%clk 0:02:22.9]} 24. Qd3 {[%clk 0:00:54.7]} 24... Rxc1 {[%clk 0:02:22.3]} 25.
Rxc1 {[%clk 0:00:55.2]} 25... Rc8 {[%clk 0:02:24.2]} 26. Rd1 {[%clk 0:00:50.4]}
26... a5 {[%clk 0:02:22.4]} 27. Bb1 {[%clk 0:00:46.6]} 27... Ne7 {[%clk
0:02:22.2]} 28. Bxh6 {[%clk 0:00:33.8]} 28... gxh6 {[%clk 0:02:21.6]} 29. Qg3+
{[%clk 0:00:34.6]} 29... Kf8 {[%clk 0:02:22.7]} 30. Ng6+ {[%clk 0:00:35.4]} 1-0

[Event "*** Titled Tuesday Blitz"]
[Site "Chess.com"]
[Date "2019.08.06"]
[Round "5"]
[White "Atakishiyev04"]
[Black "Drags95"]
[Result "1-0"]
[WhiteElo "2628"]
[BlackElo "2826"]
[TimeControl "180+2"]
[EndTime "14:01:40 PDT"]
[Termination "Atakishiyev04 won by resignation"]

1. e4 {[%clk 0:03:01.9]} 1... c5 {[%clk 0:02:54.8]} 2. Nf3 {[%clk 0:03:02.6]}
2... e6 {[%clk 0:02:56.5]} 3. d4 {[%clk 0:03:02.7]} 3... cxd4 {[%clk 0:02:58.4]}
4. Nxd4 {[%clk 0:03:04.6]} 4... Nc6 {[%clk 0:03:00.1]} 5. Nc3 {[%clk 0:03:04.6]}
5... Qc7 {[%clk 0:03:01.3]} 6. a3 {[%clk 0:02:59.9]} 6... a6 {[%clk 0:02:54.4]}
7. g4 {[%clk 0:02:58.7]} 7... b5 {[%clk 0:02:52.8]} 8. Be3 {[%clk 0:02:58.1]}
8... Bb7 {[%clk 0:02:54]} 9. Qd2 {[%clk 0:02:57.8]} 9... Nxd4 {[%clk 0:02:53.4]}
10. Bxd4 {[%clk 0:02:59.2]} 10... Ne7 {[%clk 0:02:54.9]} 11. O-O-O {[%clk
0:02:58.1]} 11... Nc6 {[%clk 0:02:56]} 12. Bb6 {[%clk 0:02:56.3]} 12... Qc8
{[%clk 0:02:55.4]} 13. h4 {[%clk 0:02:56]} 13... b4 {[%clk 0:02:52.3]} 14. axb4
{[%clk 0:02:55.1]} 14... Bxb4 {[%clk 0:02:54.2]} 15. h5 {[%clk 0:02:54.6]} 15...
Ne5 {[%clk 0:02:37.5]} 16. Rh3 {[%clk 0:02:48.6]} 16... d6 {[%clk 0:02:25.1]}
17. h6 {[%clk 0:02:42.2]} 17... g6 {[%clk 0:02:25.9]} 18. g5 {[%clk 0:02:43.8]}
18... a5 {[%clk 0:02:12.8]} 19. Qd4 {[%clk 0:02:33.2]} 19... Bc5 {[%clk
0:01:30.6]} 20. Bb5+ {[%clk 0:02:18.4]} 20... Ke7 {[%clk 0:01:27]} 21. Qd2
{[%clk 0:02:09.3]} 21... Bb4 {[%clk 0:01:10.4]} 22. Qd4 {[%clk 0:01:58.7]} 22...
Bc5 {[%clk 0:01:10.2]} 23. Qd2 {[%clk 0:01:59]} 23... Bb4 {[%clk 0:01:01.7]} 24.
f4 {[%clk 0:01:59.8]} 24... Nc4 {[%clk 0:00:58.5]} 25. Qd4 {[%clk 0:01:57.9]}
25... Nxb6 {[%clk 0:00:57.1]} 26. Qf6+ {[%clk 0:01:55.3]} 26... Kf8 {[%clk
0:00:56.1]} 27. Qxh8+ {[%clk 0:01:56.4]} 27... Ke7 {[%clk 0:00:58]} 28. Qf6+
{[%clk 0:01:54.2]} 28... Kf8 {[%clk 0:00:58.7]} 29. f5 {[%clk 0:01:53.8]} 29...
exf5 {[%clk 0:00:54.2]} 30. exf5 {[%clk 0:01:52.7]} 30... Qxf5 {[%clk
0:00:46.3]} 31. Qh8+ {[%clk 0:01:48.9]} 1-0

[Event "*** Titled Tuesday Blitz"]
[Site "Chess.com"]
[Date "2019.08.06"]
[Round "5"]
[White "Etoilegeniale"]
[Black "XiaoKangZhong"]
[Result "1-0"]
[WhiteElo "2532"]
[BlackElo "2346"]
[TimeControl "180+2"]
[EndTime "14:01:41 PDT"]
[Termination "Etoilegeniale won by resignation"]

1. e4 {[%clk 0:03:01.9]} 1... c6 {[%clk 0:03:00.8]} 2. d4 {[%clk 0:03:00.3]}
2... d5 {[%clk 0:03:01.8]} 3. exd5 {[%clk 0:03:00.2]} 3... cxd5 {[%clk
0:03:03.7]} 4. Bd3 {[%clk 0:02:59.4]} 4... Nc6 {[%clk 0:02:57.9]} 5. c3 {[%clk
0:03:00.2]} 5... Nf6 {[%clk 0:02:56.3]} 6. Nd2 {[%clk 0:02:58]} 6... Bg4 {[%clk
0:02:55.1]} 7. Ngf3 {[%clk 0:02:58.8]} 7... Qc7 {[%clk 0:02:53.7]} 8. O-O {[%clk
0:02:57.6]} 8... e6 {[%clk 0:02:51.3]} 9. Re1 {[%clk 0:02:57.7]} 9... Bd6 {[%clk
0:02:51.5]} 10. h3 {[%clk 0:02:57.8]} 10... Bh5 {[%clk 0:02:52]} 11. Qe2 {[%clk
0:02:46.7]} 11... O-O {[%clk 0:02:51.1]} 12. Qe3 {[%clk 0:02:42.1]} 12... Bf4
{[%clk 0:02:41.1]} 13. Qe2 {[%clk 0:02:42.5]} 13... a6 {[%clk 0:02:40]} 14. Nf1
{[%clk 0:02:41]} 14... Bxc1 {[%clk 0:02:31.6]} 15. Raxc1 {[%clk 0:02:41.5]}
15... b5 {[%clk 0:02:33.2]} 16. Ng3 {[%clk 0:02:41.4]} 16... Bg6 {[%clk
0:02:30.7]} 17. Bxg6 {[%clk 0:02:41.6]} 17... hxg6 {[%clk 0:02:31.3]} 18. Ne5
{[%clk 0:02:41.8]} 18... Qb6 {[%clk 0:02:15.3]} 19. h4 {[%clk 0:02:41]} 19... b4
{[%clk 0:02:06.2]} 20. h5 {[%clk 0:02:25.3]} 20... gxh5 {[%clk 0:02:04.6]} 21.
Nxh5 {[%clk 0:02:22.8]} 21... Nxh5 {[%clk 0:02:04.8]} 22. Qxh5 {[%clk
0:02:23.4]} 22... Nxe5 {[%clk 0:02:03.8]} 23. dxe5 {[%clk 0:02:17]} 23... Rfc8
{[%clk 0:01:18.7]} 24. Re3 {[%clk 0:02:16.9]} 24... bxc3 {[%clk 0:01:07.9]} 25.
Rh3 {[%clk 0:02:17.4]} 25... Kf8 {[%clk 0:01:08.4]} 26. Qh8+ {[%clk 0:01:54.3]}
26... Ke7 {[%clk 0:01:09]} 27. Qxg7 {[%clk 0:01:55.2]} 27... Rg8 {[%clk
0:00:56.9]} 28. Qf6+ {[%clk 0:01:55.4]} 28... Ke8 {[%clk 0:00:56.6]} 29. Rhxc3
{[%clk 0:01:54]} 29... Rd8 {[%clk 0:00:45.7]} 30. Rc7 {[%clk 0:01:50.6]} 30...
Rd7 {[%clk 0:00:38.7]} 31. Rxd7 {[%clk 0:01:50]} 1-0